fUSD/lending_fUSD_20250513
["ID","MTS","AMOUNT","RATE_DAILY","PERIOD"]
[360938043,1747159563922,-500.0,0.0003041,30]
[360938044,1747159563950,-500.0,0.0003041,30]
[360938045,1747159563978,-378.03165729,0.0003041,30]
[360938046,1747159564006,-1000.0,0.00030411,120]
[360938047,1747159564042,-4117.18,0.000306,31]
[360938048,1747159564078,-4117.18,0.000306,31]
[360938049,1747159564113,-4117.18,0.000306,31]
[360938050,1747159564148,-4117.18,0.000306,31]
[360938051,1747159564183,-4117.18,0.000306,31]
[360938052,1747159564218,-4117.18,0.000306,31]
[360938053,1747159564253,-4117.18,0.000306,31]
[360938054,1747159564288,-4117.18,0.000306,31]
[360938055,1747159564323,-4117.18,0.000306,31]
[360938056,1747159564359,-4117.18,0.000306,31]
[360938057,1747159564394,-4117.18,0.000306,31]
[360938058,1747159564430,-4117.18,0.000306,31]
[360938059,1747159564464,-4117.18,0.000306,31]
[360938060,1747159564499,-4117.18,0.000306,31]
[360938061,1747159564532,-4117.18,0.000306,31]
[360938062,1747159564567,-4117.18,0.000306,31]
[360938063,1747159564600,-4117.18,0.000306,31]
[360938064,1747159564634,-4117.18,0.000306,31]
[360938065,1747159564668,-4117.18,0.000306,31]
[360938066,1747159564701,-4117.18,0.000306,31]
[360938067,1747159564735,-4117.18,0.000306,31]
[360938068,1747159564769,-4117.18,0.000306,31]
[360938069,1747159564803,-4117.18,0.000306,31]
[360938070,1747159564835,-4117.18,0.000306,31]
[360938071,1747159564861,-548.0,0.00030613,30]
[360938072,1747159564892,-150.0,0.00030628,120]
[360938073,1747159564919,-150.0,0.00030638,120]
[360938074,1747159564946,-400.15852108,0.00030684,30]
[360938075,1747159564974,-500.0,0.00030684,30]
[360938076,1747159565002,-1000.0,0.00030685,120]
[360938077,1747159565030,-150.0,0.00030749,120]
[360938078,1747159565056,-250.0,0.000308,30]
[360938079,1747159565088,-396.96578347,0.00030958,30]
[360938080,1747159565116,-500.0,0.00030958,30]
[360938081,1747159565143,-1000.0,0.00030959,120]
[360938082,1747159565171,-150.0,0.00030991,120]
[360938083,1747159565201,-2044.0,0.00031,30]
[360938084,1747159565229,-1800.0,0.00031,32]
[360938085,1747159565257,-150.0,0.00031008,120]
[360938086,1747159565285,-150.0,0.0003108,120]
[360938087,1747159565312,-500.0,0.00031232,30]
[360938088,1747159565339,-1000.0,0.00031233,120]
[360938089,1747159565366,-150.0,0.00031404,120]
[360938090,1747159565393,-500.0,0.00031506,30]
[360938091,1747159565419,-1000.0,0.00031507,120]
[360938092,1747159565450,-150.0,0.00031707,120]
[360938093,1747159565476,-500.0,0.0003178,30]
[360938094,1747159565503,-1000.0,0.00031781,120]
[360938095,1747159565532,-700.0,0.00032,120]
[360938096,1747159565560,-1800.0,0.00032,33]
[360938097,1747159565587,-500.0,0.00032054,30]
[360938098,1747159565613,-1000.0,0.00032055,120]
[360938099,1747159565639,-500.0,0.00032328,30]
[360938100,1747159565666,-1000.0,0.00032329,120]
[360938101,1747159565698,-150.0,0.00032403,120]
[360938102,1747159565725,-1642.003,0.000325,120]
[360938103,1747159565751,-1642.004,0.000325,120]
[360938104,1747159565777,-1642.004,0.000325,120]
[360938105,1747159565803,-1642.003,0.000325,120]
[360938106,1747159566042,-1642.004,0.000325,120]
[360938107,1747159566070,-500.0,0.00032602,30]
[360938108,1747159566097,-1000.0,0.00032603,120]
[360938109,1747159566123,-282.41,0.0003287,120]
[360938110,1747159566152,-500.0,0.00032876,30]
[360938111,1747159566185,-626.28,0.00032876,120]
[360938112,1747159566211,-626.28,0.00032876,120]
[360938113,1747159566236,-626.28,0.00032876,120]
[360938114,1747159566262,-626.28,0.00032876,120]
[360938115,1747159566288,-626.28,0.00032876,120]
[360938116,1747159566313,-626.28,0.00032876,120]
[360938117,1747159566339,-626.28,0.00032876,120]
[360938118,1747159566363,-223.77037112,0.00032877,60]
[360938119,1747159566387,-208.0,0.00032877,120]
[360938120,1747159566411,-200.0,0.00032877,120]
[360938121,1747159566438,-1000.0,0.00032877,120]
[360938122,1747159566463,-397.80101665,0.000329,30]
[360938123,1747159566489,-433.76438782,0.00033,120]
[360938124,1747159566515,-250.0,0.00033,120]
[360938125,1747159566541,-900.0,0.00033,34]
[360938126,1747159566568,-150.0,0.00033084,120]
[360938127,1747159566594,-331.88595128,0.0003315,30]
[360938128,1747159566621,-150.0,0.00033214,120]
[360938129,1747159566647,-150.0,0.00033276,120]
[360938130,1747159566674,-2000.0,0.00033425,120]
[360938131,1747159566709,-4117.18,0.000335,31]
[360938132,1747159566742,-4117.18,0.000335,31]
[360938133,1747159566776,-4117.18,0.000335,31]
[360938134,1747159566809,-4117.18,0.000335,31]
[360938135,1747159566842,-4117.18,0.000335,31]
[360938136,1747159566874,-4117.18,0.000335,31]
[360938137,1747159566906,-4117.18,0.000335,31]
[360938138,1747159566940,-4117.18,0.000335,31]
[360938139,1747159566973,-4117.18,0.000335,31]
[360938140,1747159567005,-4117.18,0.000335,31]
[360938141,1747159567037,-4117.18,0.000335,31]
[360938142,1747159567071,-4117.18,0.000335,31]
[360938143,1747159567097,-3000.0,0.00033508,60]
[360938144,1747159567122,-900.0,0.00033508,60]
[360938145,1747159567148,-768.0,0.00033674,30]
[360938146,1747159567174,-1000.0,0.00033678,31]
[360938147,1747159567205,-150.0,0.00033789,120]
[360938148,1747159567231,-409.98516286,0.000339,120]
[360938149,1747159567258,-2000.0,0.00033973,120]
[360938150,1747159567283,-1556.4926983,0.00034,40]
[360938151,1747159567309,-900.0,0.00034,35]
[360938152,1747159567335,-2000.0,0.00034,120]
[360938153,1747159567363,-150.0,0.00034236,120]
[360938154,1747159567390,-150.0,0.00034289,120]
[360938155,1747159567417,-150.0,0.000345,120]
[360938156,1747159567447,-150.0,0.00034501,120]
[360938157,1747159567474,-2000.0,0.00034521,120]
[360938158,1747159567500,-1000.0,0.00034521,120]
[360938159,1747159567525,-3000.0,0.00034604,60]
[360938160,1747159567550,-248.30935318,0.00034604,60]
[360938161,1747159567576,-150.0,0.00034636,120]
[360938162,1747159567604,-1000.0,0.00034795,120]
[360938163,1747159567631,-2000000.0,0.000348,120]
[360938164,1747159567658,-1000.52091607,0.000349,120]
[360938165,1747159567686,-514.33365629,0.00035,30]
[360938166,1747159567713,-3299.7910747,0.00035,30]
[360938167,1747159567739,-150.07537935,0.00035,30]
[360938168,1747159567765,-1000.0,0.00035,120]
[360938169,1747159567791,-900.0,0.00035,36]
[360938170,1747159567816,-2000.0,0.00035068,120]
[360938171,1747159567842,-1000.0,0.00035068,120]
[360938172,1747159567869,-1000.0,0.00035342,120]
[360938173,1747159567896,-150.0,0.00035435,120]
[360938174,1747159567923,-150.0,0.0003547,120]
[360938175,1747159567951,-150.0,0.00035612,120]
[360938176,1747159567976,-2000.0,0.00035616,120]
[360938177,1747159568001,-1000.0,0.00035616,120]
[360938178,1747159568027,-2541.0,0.0003564,30]
[360938179,1747159568051,-3000.0,0.000357,60]
[360938180,1747159568078,-183.743,0.00035714,43]
[360938181,1747159568104,-3402.968,0.00035719,43]
[360938182,1747159568131,-1000.0,0.0003589,120]
[360938183,1747159568159,-900.0,0.00036,37]
[360938184,1747159568186,-2568.65398177,0.00036,60]
[360938185,1747159568213,-1500.0,0.00036,60]
[360938186,1747159568241,-2000.0,0.00036,120]
[360938187,1747159568266,-1000.0,0.00036,120]
[360938188,1747159568293,-150.0,0.00036099,120]
[360938189,1747159568320,-2000.0,0.00036164,120]
[360938190,1747159568346,-1000.0,0.00036164,120]
[360938191,1747159568373,-1000.0,0.00036438,120]
[360938192,1747159568401,-150.0,0.00036579,120]
[360938193,1747159568427,-2000.0,0.00036712,120]
[360938194,1747159568456,-1000.0,0.00036712,120]
[360938195,1747159568482,-389.10483179,0.00036796,60]
[360938196,1747159568507,-1000.0,0.00036986,120]
[360938197,1747159568533,-500.0,0.00037,120]
[360938198,1747159568560,-900.0,0.00037,38]
[360938199,1747159568587,-250.0,0.00037,45]
[360938200,1747159568814,-1000.0,0.00037,120]
[360938201,1747159568842,-1864.93681073,0.000372,120]
[360938202,1747159568871,-1864.9368107,0.000372,120]
[360938203,1747159568899,-1864.9368107,0.000372,120]
[360938204,1747159568925,-1864.9368107,0.000372,120]
[360938205,1747159568954,-1864.9368107,0.000372,120]
[360938206,1747159568997,-2000.0,0.0003726,120]
[360938207,1747159569070,-1000.0,0.0003726,120]
[360938208,1747159569125,-150.0,0.00037265,120]
[360938209,1747159569185,-1000.0,0.00037534,120]
[360938210,1747159569265,-412.05,0.000378,120]
[360938211,1747159569307,-2000000.0,0.000378,120]
[360938212,1747159569334,-515.81,0.00037808,60]
[360938213,1747159569360,-2000.0,0.00037808,120]
[360938214,1747159569387,-1000.0,0.00037808,120]
[360938215,1747159569413,-515.82,0.00037839,80]
[360938216,1747159569440,-515.81,0.00037869,100]
[360938217,1747159569467,-2000.0,0.00037894,31]
[360938218,1747159569493,-515.82,0.000379,120]
[360938219,1747159569522,-150.0,0.00037991,120]
[360938220,1747159569548,-900.0,0.00038,39]
[360938221,1747159569574,-541.43479567,0.00038,30]
[360938222,1747159569599,-1128.0,0.00038,120]
[360938223,1747159569627,-1500.0,0.00038,120]
[360938224,1747159569653,-250.0,0.00038,60]
[360938225,1747159569680,-2000.0,0.00038,120]
[360938226,1747159569707,-1000.0,0.00038,120]
[360938227,1747159569734,-1000.0,0.00038082,120]
[360938228,1747159569762,-150.0,0.00038174,120]
[360938229,1747159569789,-150.0,0.00038228,120]
[360938230,1747159569817,-2000.0,0.00038356,120]
[360938231,1747159569843,-1000.0,0.00038356,120]
[360938232,1747159569871,-641.38957482,0.0003836,120]
[360938233,1747159569897,-641.38957482,0.0003836,120]
[360938234,1747159569922,-641.38957482,0.0003836,120]
[360938235,1747159569948,-641.38957482,0.0003836,120]
[360938236,1747159569974,-641.38957482,0.0003836,120]
[360938237,1747159569999,-641.38957482,0.0003836,120]
[360938238,1747159570024,-641.38957482,0.0003836,120]
[360938239,1747159570050,-641.38957482,0.0003836,120]
[360938240,1747159570078,-641.38957482,0.0003836,120]
[360938241,1747159570104,-641.38957482,0.0003836,120]
[360938242,1747159570131,-641.38957482,0.0003836,120]
[360938243,1747159570159,-641.38957482,0.0003836,120]
[360938244,1747159570185,-641.38957482,0.0003836,120]
[360938245,1747159570212,-641.38957482,0.0003836,120]
[360938246,1747159570240,-641.38957482,0.0003836,120]
[360938247,1747159570267,-641.38957482,0.0003836,120]
[360938248,1747159570295,-641.38957482,0.0003836,120]
[360938249,1747159570323,-641.38957482,0.0003836,120]
[360938250,1747159570349,-641.38957482,0.0003836,120]
[360938251,1747159570376,-641.38,0.0003836,120]
[360938252,1747159570403,-1496.57567458,0.0003836,120]
[360938253,1747159570429,-1496.57567458,0.0003836,120]
[360938254,1747159570458,-1496.57567458,0.0003836,120]
[360938255,1747159570488,-1496.57567458,0.0003836,120]
[360938256,1747159570516,-1496.57567458,0.0003836,120]
[360938257,1747159570544,-1496.57567458,0.0003836,120]
[360938258,1747159570571,-1496.57567458,0.0003836,120]
[360938259,1747159570599,-1496.57567458,0.0003836,120]
[360938260,1747159570626,-1496.57567458,0.0003836,120]
[360938261,1747159570656,-1496.57567458,0.0003836,120]
[360938262,1747159570685,-1496.57567458,0.0003836,120]
[360938263,1747159570714,-1496.57567458,0.0003836,120]
[360938264,1747159570743,-1496.57567458,0.0003836,120]
[360938265,1747159570772,-1496.57567458,0.0003836,120]
[360938266,1747159570800,-1496.57567458,0.0003836,120]
[360938267,1747159570827,-1496.57567458,0.0003836,120]
[360938268,1747159570855,-1496.57567458,0.0003836,120]
[360938269,1747159570882,-1496.57567458,0.0003836,120]
[360938270,1747159570910,-1496.57567458,0.0003836,120]
[360938271,1747159570938,-1496.57,0.0003836,120]
[360938272,1747159570965,-865.86241459,0.0003836,120]
[360938273,1747159570991,-865.86241459,0.0003836,120]
[360938274,1747159571018,-865.86241459,0.0003836,120]
[360938275,1747159571044,-865.86241459,0.0003836,120]
[360938276,1747159571074,-865.86241459,0.0003836,120]
[360938277,1747159571100,-865.86241459,0.0003836,120]
[360938278,1747159571127,-865.86241459,0.0003836,120]
[360938279,1747159571154,-865.86241459,0.0003836,120]
[360938280,1747159571180,-865.86241459,0.0003836,120]
[360938281,1747159571209,-865.86241459,0.0003836,120]
[360938282,1747159571235,-865.86241459,0.0003836,120]
[360938283,1747159571262,-865.86241459,0.0003836,120]
[360938284,1747159571289,-865.86241459,0.0003836,120]
[360938285,1747159571316,-865.86241459,0.0003836,120]
[360938286,1747159571342,-865.86241459,0.0003836,120]
[360938287,1747159571369,-865.86241459,0.0003836,120]
[360938288,1747159571396,-865.86241459,0.0003836,120]
[360938289,1747159571422,-865.86241459,0.0003836,120]
[360938290,1747159571449,-865.86241459,0.0003836,120]
[360938291,1747159571475,-865.86,0.0003836,120]
[360938292,1747159571502,-2020.34563405,0.0003836,120]
[360938293,1747159571528,-2020.34563405,0.0003836,120]
[360938294,1747159571751,-2020.34563405,0.0003836,120]
[360938295,1747159571777,-2020.34563405,0.0003836,120]
[360938296,1747159571804,-2020.34563405,0.0003836,120]
[360938297,1747159571830,-2020.34563405,0.0003836,120]
[360938298,1747159571856,-2020.34563405,0.0003836,120]
[360938299,1747159571882,-2020.34563405,0.0003836,120]
[360938300,1747159571911,-2020.34563405,0.0003836,120]
[360938301,1747159571938,-2020.34563405,0.0003836,120]
[360938302,1747159571964,-2020.34563405,0.0003836,120]
[360938303,1747159571992,-2020.34563405,0.0003836,120]
[360938304,1747159572019,-2020.34563405,0.0003836,120]
[360938305,1747159572044,-2020.34563405,0.0003836,120]
[360938306,1747159572073,-2020.34563405,0.0003836,120]
[360938307,1747159572098,-2020.34563405,0.0003836,120]
[360938308,1747159572124,-2020.34563405,0.0003836,120]
[360938309,1747159572149,-2020.34563405,0.0003836,120]
[360938310,1747159572175,-2020.34563405,0.0003836,120]
[360938311,1747159572200,-2020.34,0.0003836,120]
[360938312,1747159572226,-298.01537389,0.0003836,120]
[360938313,1747159572252,-298.01537389,0.0003836,120]
[360938314,1747159572278,-298.01537389,0.0003836,120]
[360938315,1747159572303,-298.01537389,0.0003836,120]
[360938316,1747159572329,-298.01537389,0.0003836,120]
[360938317,1747159572354,-298.01537389,0.0003836,120]
[360938318,1747159572380,-298.01537389,0.0003836,120]
[360938319,1747159572407,-298.01537389,0.0003836,120]
[360938320,1747159572434,-298.01537389,0.0003836,120]
[360938321,1747159572460,-298.01537389,0.0003836,120]
[360938322,1747159572486,-298.01537389,0.0003836,120]
[360938323,1747159572517,-298.01537389,0.0003836,120]
[360938324,1747159572544,-298.01537389,0.0003836,120]
[360938325,1747159572570,-298.01537389,0.0003836,120]
[360938326,1747159572598,-298.01537389,0.0003836,120]
[360938327,1747159572624,-298.01537389,0.0003836,120]
[360938328,1747159572650,-298.01537389,0.0003836,120]
[360938329,1747159572677,-298.01537389,0.0003836,120]
[360938330,1747159572706,-298.01537389,0.0003836,120]
[360938331,1747159572733,-298.01,0.0003836,120]
[360938332,1747159572759,-695.36920574,0.0003836,120]
[360938333,1747159572785,-695.36920574,0.0003836,120]
[360938334,1747159572813,-695.36920574,0.0003836,120]
[360938335,1747159572854,-695.36920574,0.0003836,120]
[360938336,1747159572907,-695.36920574,0.0003836,120]
[360938337,1747159572961,-695.36920574,0.0003836,120]
[360938338,1747159573013,-695.36920574,0.0003836,120]
[360938339,1747159573066,-695.36920574,0.0003836,120]
[360938340,1747159573121,-695.36920574,0.0003836,120]
[360938341,1747159573178,-695.36920574,0.0003836,120]
[360938342,1747159573223,-695.36920574,0.0003836,120]
[360938343,1747159573250,-695.36920574,0.0003836,120]
[360938344,1747159573277,-695.36920574,0.0003836,120]
[360938345,1747159573303,-695.36920574,0.0003836,120]
[360938346,1747159573330,-695.36920574,0.0003836,120]
[360938347,1747159573357,-695.36920574,0.0003836,120]
[360938348,1747159573383,-695.36920574,0.0003836,120]
[360938349,1747159573409,-695.36920574,0.0003836,120]
[360938350,1747159573434,-695.36920574,0.0003836,120]
[360938351,1747159573460,-695.36,0.0003836,120]
[360938352,1747159573486,-150.79020425,0.000384,33]
[360938353,1747159573514,-1000.0,0.0003863,120]
[360938354,1747159573542,-31128.61020649,0.000388,30]
[360938355,1747159573572,-428.72924,0.000388,120]
[360938356,1747159573599,-4531.58,0.000388,30]
[360938357,1747159573626,-377.4032885,0.00038865,30]
[360938358,1747159573652,-3000.0,0.0003889,41]
[360938359,1747159573680,-1000.0,0.00038904,120]
[360938360,1747159573710,-900.0,0.00039,40]
[360938361,1747159573738,-314.22006755,0.00039,120]
[360938362,1747159573766,-351.83235272,0.00039,120]
[360938363,1747159573795,-250.0,0.00039,45]
[360938364,1747159573823,-1000.0,0.00039,120]
[360938365,1747159573849,-1000.0,0.00039,120]
[360938366,1747159573876,-1000.0,0.00039178,120]
[360938367,1747159573903,-3000.0,0.0003944,41]
[360938368,1747159573929,-1000.0,0.00039452,120]
[360938369,1747159573956,-160.0,0.000395,30]
[360938370,1747159573982,-800.0,0.000395,30]
[360938371,1747159574008,-160.0,0.000395,30]
[360938372,1747159574034,-3000.0,0.0003968,41]
[360938373,1747159574060,-1000.0,0.00039726,120]
[360938374,1747159574092,-818022.17017278,0.000398,120]
[360938375,1747159580135,-626.28,0.00032876,120]
[360938376,1747159580279,-626.28,0.00032876,120]
[360938377,1747159580307,-626.28,0.00032876,120]
[360938378,1747159580333,-626.28,0.00032876,120]
[360938379,1747159580358,-626.28,0.00032876,120]
[360938380,1747159580382,-626.28,0.00032876,120]
[360938381,1747159580406,-626.28,0.00032876,120]
[360938382,1747159580433,-626.28,0.00032876,120]
[360938383,1747159580460,-626.28,0.00032876,120]
[360938384,1747159580485,-626.28,0.00032876,120]
[360938385,1747159580511,-626.28,0.00032876,120]
[360938386,1747159580537,-626.28,0.00032876,120]
[360938387,1747159580563,-626.28,0.00032876,120]
[360938388,1747159580587,-626.28,0.00032876,120]
[360938389,1747159580611,-626.28,0.00032876,120]
[360938390,1747159580939,-626.28,0.00032876,120]
[360938391,1747159580963,-626.40316489,0.00032876,120]
[360938392,1747159580997,-1181977.82982722,0.000398,120]
[360938393,1747159581023,-428.72924,0.000398,120]
[360938394,1747159581051,-437.0,0.00039886,90]
[360938395,1747159581081,-3069.8826,0.0003997,41]
[360938396,1747159581106,-437.33401521,0.00039986,90]
[360938397,1747159581136,-480.0,0.00039987,30]
[360938398,1747159581165,-1013.49183455,0.00039999,120]
[360938399,1747159581195,-50000.0,0.0004,40]
[360938400,1747159581221,-500.0,0.0004,120]
[360938401,1747159581249,-900.0,0.0004,41]
[360938402,1747159581276,-477.12749073,0.0004,30]
[360938403,1747159581304,-664.5778873,0.0004,120]
[360938404,1747159581331,-326.80611068,0.0004,120]
[360938405,1747159581357,-346.11935338,0.0004,30]
[360938406,1747159581386,-199.00175987,0.0004,30]
[360938407,1747159581418,-1025.10480014,0.0004,30]
[360938408,1747159581469,-500.0,0.0004,30]
[360938409,1747159581519,-1500.0,0.0004,120]
[360938410,1747159581570,-206.0,0.0004,120]
[360938411,1747159581621,-1215.0,0.0004,120]
[360938412,1747159581672,-1380.85217009,0.0004,30]
[360938413,1747159581710,-2000.0,0.0004,120]
[360938414,1747159581740,-2080.9506482,0.0004,120]
[360938415,1747159581768,-2633.0,0.0004,60]
[360938416,1747159581796,-585.0,0.0004,120]
[360938417,1747159581824,-265.0,0.0004,120]
[360938418,1747159581851,-2770.0,0.0004,120]
[360938419,1747159581879,-19971.43,0.0004,60]
[360938420,1747159581907,-1000.0,0.0004,120]
[360938421,1747159581935,-1000.0,0.0004,120]
[360938422,1747159581963,-5000.0,0.0004,120]
[360938423,1747159581993,-266.98106638,0.0004,120]
[360938424,1747159582021,-150.0,0.00040077,120]
[360938425,1747159582050,-150.0,0.00040233,120]
[360938426,1747159582083,-1000.0,0.00040274,120]
[360938427,1747159582111,-150.0,0.00040425,120]
[360938428,1747159582140,-500.0,0.0004049,120]
[360938429,1747159582172,-160.0,0.000405,35]
[360938430,1747159582203,-160.0,0.000405,35]
[360938431,1747159582231,-1000.0,0.00040548,120]
[360938432,1747159582261,-500.0,0.0004059,120]
[360938433,1747159582289,-888.0,0.00040602,30]
[360938434,1747159582319,-806.61798475,0.0004069,120]
[360938435,1747159582347,-272.59081006,0.000408,60]
[360938436,1747159582376,-3049.20833275,0.000408,60]
[360938437,1747159582404,-428.72924,0.000408,120]
[360938438,1747159582432,-500.0,0.00040805,30]
[360938439,1747159582461,-1000.0,0.00040822,120]
[360938440,1747159582489,-1372.58571,0.00040888,30]
[360938441,1747159582516,-1690.0,0.0004089,30]
[360938442,1747159582548,-50000.0,0.00041,41]
[360938443,1747159582578,-900.0,0.00041,42]
[360938444,1747159582606,-508.74294042,0.00041,120]
[360938445,1747159582634,-606.48,0.00041,120]
[360938446,1747159582667,-422.75512255,0.00041,120]
[360938447,1747159582696,-1000.0,0.00041,120]
[360938448,1747159582726,-200.0,0.00041,90]
[360938449,1747159582755,-6876.0,0.00041,117]
[360938450,1747159582785,-150.0,0.00041001,120]
[360938451,1747159582813,-1372.58571,0.00041088,30]
[360938452,1747159582843,-588.73,0.00041095,120]
[360938453,1747159582870,-588.73,0.00041095,120]
[360938454,1747159582897,-588.73,0.00041095,120]
[360938455,1747159582926,-588.73,0.00041095,120]
[360938456,1747159582956,-588.73,0.00041095,120]
[360938457,1747159582985,-588.73,0.00041095,120]
[360938458,1747159583012,-588.73,0.00041095,120]
[360938459,1747159583041,-588.73,0.00041095,120]
[360938460,1747159583070,-588.73,0.00041095,120]
[360938461,1747159583100,-588.73,0.00041095,120]
[360938462,1747159583128,-588.73,0.00041095,120]
[360938463,1747159583155,-588.73,0.00041095,120]
[360938464,1747159583184,-588.73,0.00041095,120]
[360938465,1747159583213,-588.73,0.00041095,120]
[360938466,1747159583241,-588.73,0.00041095,120]
[360938467,1747159583268,-588.73,0.00041095,120]
[360938468,1747159583296,-588.73,0.00041095,120]
[360938469,1747159583324,-588.73,0.00041095,120]
[360938470,1747159583352,-588.73,0.00041095,120]
[360938471,1747159583380,-588.73,0.00041095,120]
[360938472,1747159583409,-588.73,0.00041095,120]
[360938473,1747159583436,-588.73,0.00041095,120]
[360938474,1747159583464,-588.73,0.00041095,120]
[360938475,1747159583499,-588.75447949,0.00041095,120]
[360938476,1747159583528,-626.5,0.00041095,120]
[360938477,1747159583556,-1000.0,0.00041095,120]
[360938478,1747159583585,-1000.0,0.00041095,120]
[360938479,1747159583613,-1000.0,0.00041095,120]
[360938480,1747159583640,-1000.0,0.00041095,120]
[360938481,1747159583666,-1000.0,0.00041095,120]
[360938482,1747159583693,-1000.0,0.00041095,120]
[360938483,1747159583721,-1000.0,0.00041095,120]
[360938484,1747159583956,-1000.0,0.00041095,120]
[360938485,1747159583984,-1000.0,0.00041095,120]
[360938486,1747159584012,-1000.0,0.00041095,120]
[360938487,1747159584046,-1000.0,0.00041095,120]
[360938488,1747159584073,-1000.0,0.00041095,120]
[360938489,1747159584103,-1000.0,0.00041095,120]
[360938490,1747159584130,-1000.0,0.00041095,120]
[360938491,1747159584157,-1000.0,0.00041095,120]
[360938492,1747159584183,-1000.0,0.00041095,120]
[360938493,1747159584213,-1000.0,0.00041095,120]
[360938494,1747159584240,-1000.0,0.00041095,120]
[360938495,1747159584268,-1000.0,0.00041095,120]
[360938496,1747159584295,-1000.0,0.00041095,120]
[360938497,1747159584322,-727.99236275,0.00041095,120]
[360938498,1747159584348,-190.0,0.00041096,90]
[360938499,1747159584374,-3105.6,0.00041096,120]
[360938500,1747159584400,-500.0,0.00041096,30]
[360938501,1747159584426,-500.0,0.00041096,30]
[360938502,1747159584452,-500.0,0.00041096,30]
[360938503,1747159584479,-500.0,0.00041096,30]
[360938504,1747159584505,-500.0,0.00041096,30]
[360938505,1747159584531,-500.0,0.00041096,30]
[360938506,1747159584558,-500.0,0.00041096,30]
[360938507,1747159584584,-500.0,0.00041096,30]
[360938508,1747159584610,-500.0,0.00041096,30]
[360938509,1747159584636,-500.0,0.00041096,30]
[360938510,1747159584662,-500.0,0.00041096,30]
[360938511,1747159584688,-508.0,0.00041096,30]
[360938512,1747159584717,-500.0,0.00041096,30]
[360938513,1747159584743,-500.0,0.00041096,30]
[360938514,1747159584770,-500.0,0.00041096,30]
[360938515,1747159584797,-500.0,0.00041096,30]
[360938516,1747159584824,-503.0,0.00041096,30]
[360938517,1747159584850,-500.0,0.00041096,30]
[360938518,1747159584876,-500.0,0.00041096,30]
[360938519,1747159584902,-500.0,0.00041096,30]
[360938520,1747159584928,-500.0,0.00041096,30]
[360938521,1747159584954,-500.0,0.00041096,30]
[360938522,1747159584980,-500.0,0.00041096,30]
[360938523,1747159585007,-500.0,0.00041096,30]
[360938524,1747159585033,-500.0,0.00041096,30]
[360938525,1747159585060,-500.0,0.00041096,30]
[360938526,1747159585087,-500.0,0.00041096,30]
[360938527,1747159585113,-500.0,0.00041096,30]
[360938528,1747159585141,-2000.0,0.00041096,30]
[360938529,1747159585170,-2000.0,0.00041096,30]
[360938530,1747159585197,-2000.0,0.00041096,30]
[360938531,1747159585224,-2000.0,0.00041096,30]
[360938532,1747159585251,-2000.0,0.00041096,30]
[360938533,1747159585279,-2000.0,0.00041096,30]
[360938534,1747159585305,-2000.0,0.00041096,30]
[360938535,1747159585332,-2000.0,0.00041096,30]
[360938536,1747159585359,-500.0,0.00041096,30]
[360938537,1747159585385,-500.0,0.00041096,30]
[360938538,1747159585410,-500.0,0.00041096,30]
[360938539,1747159585437,-500.0,0.00041096,30]
[360938540,1747159585466,-500.0,0.00041096,30]
[360938541,1747159585492,-500.0,0.00041096,30]
[360938542,1747159585518,-500.0,0.00041096,30]